fUSD/lending_fUSD_20260614
["ID","MTS","AMOUNT","RATE_DAILY","PERIOD"]
[425026803,1781436663000,-1045.91,0.00028493,8]
[425026792,1781436663000,-500.0,0.00028493,8]
[425026797,1781436663000,-1809.73,0.00028493,8]
[425026800,1781436663000,-500.0,0.00028493,8]
[425026798,1781436663000,-500.0,0.00028493,8]
[425026793,1781436663000,-500.0,0.00028493,8]
[425026801,1781436663000,-1112.89,0.00028493,8]
[425026857,1781436664000,-1045.1,0.00028493,8]
[425026858,1781436664000,-509.47,0.00028493,8]
[425026859,1781436664000,-815.3,0.00028493,8]
[425026862,1781436664000,-500.0,0.00028493,8]
[425026854,1781436664000,-513.29,0.00028493,8]
[425026855,1781436664000,-554.92,0.00028493,8]
[425026853,1781436664000,-500.0,0.00028493,8]
[425026850,1781436664000,-500.0,0.00028493,8]
[425026861,1781436664000,-500.0,0.00028493,8]
[425026848,1781436664000,-347.65910579,0.00028493,8]
[425026856,1781436664000,-564.02563949,0.00028493,8]
[425026863,1781436664000,-594.90112047,0.00028493,8]
[425026873,1781436664000,-500.0,0.00028493,8]
[425026865,1781436664000,-500.0,0.00028493,8]
[425026866,1781436664000,-500.0,0.00028493,8]
[425026867,1781436664000,-500.0,0.00028493,8]
[425026869,1781436664000,-500.0,0.00028493,8]
[425026868,1781436664000,-2529.39,0.00028493,8]
[425026870,1781436664000,-1806.53,0.00028493,8]
[425026871,1781436664000,-658.83,0.00028493,8]
[425026876,1781436664000,-451.90503693,0.00028493,8]
[425026875,1781436664000,-500.0,0.00028493,8]
[425026877,1781436664000,-2097.15,0.00028493,8]
[425026845,1781436664000,-1714.07,0.00028493,8]
[425026864,1781436664000,-749.52,0.00028493,8]
[425026851,1781436664000,-1471.77,0.00028493,8]
[425026828,1781436664000,-172.42644225,0.00028493,8]
[425026847,1781436664000,-694.06,0.00028493,8]
[425026874,1781436664000,-1518.26,0.00028493,8]
[425026824,1781436664000,-887.59,0.00028493,8]
[425026823,1781436664000,-500.0,0.00028493,8]
[425026826,1781436664000,-1646.14,0.00028493,8]
[425026827,1781436664000,-500.0,0.00028493,8]
[425026825,1781436664000,-1049.64,0.00028493,8]
[425026829,1781436664000,-500.0,0.00028493,8]
[425026830,1781436664000,-753.68,0.00028493,8]
[425026831,1781436664000,-500.0,0.00028493,8]
[425026832,1781436664000,-3350.75,0.00028493,8]
[425026833,1781436664000,-500.0,0.00028493,8]
[425026849,1781436664000,-1937.98,0.00028493,8]
[425026834,1781436664000,-500.0,0.00028493,8]
[425026836,1781436664000,-1628.84,0.00028493,8]
[425026835,1781436664000,-500.0,0.00028493,8]
[425026838,1781436664000,-500.0,0.00028493,8]
[425026841,1781436664000,-500.0,0.00028493,8]
[425026842,1781436664000,-500.0,0.00028493,8]
[425026839,1781436664000,-500.0,0.00028493,2]
[425026840,1781436664000,-500.0,0.00028493,8]
[425026843,1781436664000,-500.0,0.00028493,8]
[425026844,1781436664000,-500.0,0.00028493,8]
[425026846,1781436664000,-567.18,0.00028493,8]
[425026852,1781436664000,-500.0,0.00028493,8]
[425026837,1781436664000,-769.05,0.00028493,8]
[425026872,1781436664000,-500.0,0.00028493,8]
[425026860,1781436664000,-1715.79,0.00028493,8]
[425026878,1781436664000,-348.22781117,0.00028493,8]
[425026911,1781436664000,-500.0,0.00028493,2]
[425026908,1781436664000,-500.0,0.00028493,8]
[425026910,1781436664000,-500.0,0.00028493,8]
[425026909,1781436664000,-520.94,0.00028493,8]
[425026912,1781436664000,-735.99,0.00028493,8]
[425026915,1781436664000,-737.24,0.00028493,8]
[425026914,1781436664000,-500.0,0.00028493,8]
[425026918,1781436664000,-500.0,0.00028493,8]
[425026921,1781436664000,-500.0,0.00028493,8]
[425026917,1781436664000,-500.0,0.00028493,8]
[425026913,1781436664000,-2417.92,0.00028493,8]
[425026907,1781436664000,-1671.31,0.00028493,8]
[425026916,1781436664000,-500.0,0.00028493,8]
[425026919,1781436664000,-605.32981933,0.00028493,8]
[425026924,1781436664000,-500.0,0.00028493,8]
[425026931,1781436664000,-500.0,0.00028493,8]
[425026926,1781436664000,-500.0,0.00028493,8]
[425026925,1781436664000,-500.0,0.00028493,8]
[425026929,1781436664000,-500.0,0.00028493,8]
[425026923,1781436664000,-500.0,0.00028493,8]
[425026928,1781436664000,-500.0,0.00028493,8]
[425026927,1781436664000,-500.0,0.00028493,8]
[425026930,1781436664000,-500.0,0.00028493,8]
[425026879,1781436664000,-560.26,0.00028493,8]
[425026922,1781436664000,-500.0,0.00028493,8]
[425026903,1781436664000,-500.0,0.00028493,8]
[425026920,1781436664000,-500.0,0.00028493,8]
[425026906,1781436664000,-500.0,0.00028493,8]
[425026904,1781436664000,-500.0,0.00028493,8]
[425026885,1781436664000,-1203.27,0.00028493,8]
[425026881,1781436664000,-500.0,0.00028493,8]
[425026884,1781436664000,-500.0,0.00028493,8]
[425026883,1781436664000,-574.53,0.00028493,8]
[425026882,1781436664000,-3435.37,0.00028493,8]
[425026880,1781436664000,-1537.37,0.00028493,8]
[425026887,1781436664000,-796.79,0.00028493,8]
[425026888,1781436664000,-500.0,0.00028493,8]
[425026892,1781436664000,-500.0,0.00028493,8]
[425026891,1781436664000,-500.0,0.00028493,8]
[425026932,1781436664000,-500.0,0.00028493,8]
[425026889,1781436664000,-1568.53,0.00028493,8]
[425026886,1781436664000,-500.0,0.00028493,8]
[425026893,1781436664000,-500.0,0.00028493,8]
[425026901,1781436664000,-1065.92,0.00028493,8]
[425026902,1781436664000,-500.0,0.00028493,8]
[425026900,1781436664000,-500.0,0.00028493,8]
[425026898,1781436664000,-500.0,0.00028493,8]
[425026894,1781436664000,-500.0,0.00028493,8]
[425026905,1781436664000,-500.0,0.00028493,8]
[425026890,1781436664000,-922.3,0.00028493,8]
[425026895,1781436664000,-500.0,0.00028493,8]
[425026896,1781436664000,-500.0,0.00028493,8]
[425026899,1781436664000,-552.92,0.00028493,8]
[425026897,1781436664000,-500.0,0.00028493,8]
[425026974,1781436665000,-165.46,0.00028493,8]
[425026970,1781436665000,-160.35,0.00028493,8]
[425026981,1781436665000,-800.59,0.00028493,8]
[425026971,1781436665000,-361.19,0.00028493,8]
[425026964,1781436665000,-500.0,0.00028493,8]
[425026966,1781436665000,-500.0,0.00028493,8]
[425026967,1781436665000,-500.0,0.00028493,8]
[425026965,1781436665000,-648.07,0.00028493,8]
[425026969,1781436665000,-256.66,0.00028493,8]
[425026959,1781436665000,-500.0,0.00028493,8]
[425026973,1781436665000,-500.0,0.00028493,8]
[425026968,1781436665000,-500.0,0.00028493,8]
[425026972,1781436665000,-500.0,0.00028493,8]
[425026990,1781436665000,-500.0,0.00028493,8]
[425026975,1781436665000,-500.0,0.00028493,8]
[425026978,1781436665000,-352.69,0.00028493,8]
[425026980,1781436665000,-280.24,0.00028493,8]
[425026979,1781436665000,-500.0,0.00028493,8]
[425026977,1781436665000,-334.31,0.00028493,8]
[425026982,1781436665000,-500.0,0.00028493,8]
[425026983,1781436665000,-163.19,0.00028493,8]
[425026986,1781436665000,-500.0,0.00028493,8]
[425026991,1781436665000,-500.0,0.00028493,8]
[425026985,1781436665000,-500.0,0.00028493,8]
[425026989,1781436665000,-500.0,0.00028493,8]
[425026963,1781436665000,-500.0,0.00028493,8]
[425026976,1781436665000,-496.95,0.00028493,8]
[425026961,1781436665000,-500.0,0.00028493,8]
[425026933,1781436665000,-512.7032,0.00028493,8]
[425026960,1781436665000,-216.26,0.00028493,8]
[425026934,1781436665000,-500.0,0.00028493,8]
[425026988,1781436665000,-500.0,0.00028493,8]
[425026936,1781436665000,-500.0,0.00028493,8]
[425026937,1781436665000,-500.0,0.00028493,8]
[425026935,1781436665000,-500.0,0.00028493,8]
[425026945,1781436665000,-500.0,0.00028493,8]
[425026944,1781436665000,-500.0,0.00028493,8]
[425026938,1781436665000,-500.0,0.00028493,8]
[425026941,1781436665000,-302.95,0.00028493,8]
[425026943,1781436665000,-614.38,0.00028493,8]
[425026939,1781436665000,-155.6,0.00028493,8]
[425026942,1781436665000,-500.0,0.00028493,8]
[425026962,1781436665000,-500.0,0.00028493,8]
[425026940,1781436665000,-500.0,0.00028493,8]
[425026949,1781436665000,-500.0,0.00028493,8]
[425026948,1781436665000,-500.0,0.00028493,8]
[425026946,1781436665000,-500.0,0.00028493,8]
[425026957,1781436665000,-156.37,0.00028493,8]
[425026950,1781436665000,-500.0,0.00028493,8]
[425026951,1781436665000,-257.06,0.00028493,8]
[425026956,1781436665000,-462.41,0.00028493,8]
[425026953,1781436665000,-500.0,0.00028493,8]
[425026952,1781436665000,-500.0,0.00028493,8]
[425026954,1781436665000,-500.0,0.00028493,8]
[425026955,1781436665000,-554.65,0.00028493,8]
[425026958,1781436665000,-500.0,0.00028493,8]
[425026947,1781436665000,-500.0,0.00028493,8]
[425026993,1781436665000,-587.9,0.00028493,8]
[425026984,1781436665000,-440.94,0.00028493,8]
[425026992,1781436665000,-500.0,0.00028493,8]
[425027021,1781436665000,-216.26,0.00028493,8]
[425027024,1781436665000,-529.39,0.00028493,8]
[425027026,1781436665000,-527.83,0.00028493,8]
[425027028,1781436665000,-156.37,0.00028493,8]
[425027027,1781436665000,-500.0,0.00028493,8]
[425027036,1781436665000,-601.59,0.00028493,8]
[425027030,1781436665000,-280.24,0.00028493,8]
[425027031,1781436665000,-334.31,0.00028493,8]
[425027032,1781436665000,-290.01,0.00028493,8]
[425027038,1781436665000,-440.94,0.00028493,8]
[425027033,1781436665000,-1077.81,0.00028493,8]
[425027034,1781436665000,-500.0,0.00028493,8]
[425027042,1781436665000,-529.39,0.00028493,8]
[425027035,1781436665000,-500.0,0.00028493,8]
[425027037,1781436665000,-500.0,0.00028493,8]
[425027039,1781436665000,-500.0,0.00028493,8]
[425027041,1781436665000,-500.0,0.00028493,8]
[425027044,1781436665000,-500.0,0.00028493,8]
[425027043,1781436665000,-500.0,0.00028493,8]
[425027046,1781436665000,-500.0,0.00028493,8]
[425027045,1781436665000,-198.4,0.00028493,8]
[425027047,1781436665000,-500.0,0.00028493,8]
[425027048,1781436665000,-500.0,0.00028493,8]
[425027051,1781436665000,-292.85,0.00028493,8]
[425027049,1781436665000,-417.92,0.00028493,8]
[425026987,1781436665000,-500.0,0.00028493,8]
[425027050,1781436665000,-1000.0,0.00028493,8]
[425027020,1781436665000,-519.65,0.00028493,8]
[425027018,1781436665000,-172.3,0.00028493,8]
[425027040,1781436665000,-500.0,0.00028493,8]
[425027023,1781436665000,-500.0,0.00028493,8]
[425026995,1781436665000,-198.4,0.00028493,8]
[425027025,1781436665000,-500.0,0.00028493,8]
[425026994,1781436665000,-500.0,0.00028493,8]
[425026997,1781436665000,-290.01,0.00028493,8]
[425026998,1781436665000,-500.0,0.00028493,8]
[425026996,1781436665000,-500.0,0.00028493,8]
[425026999,1781436665000,-399.74,0.00028493,8]
[425027003,1781436665000,-500.0,0.00028493,8]
[425027000,1781436665000,-500.0,0.00028493,8]
[425027001,1781436665000,-500.0,0.00028493,8]
[425027002,1781436665000,-500.0,0.00028493,8]
[425027005,1781436665000,-610.35,0.00028493,8]
[425027011,1781436665000,-375.22,0.00028493,8]
[425027009,1781436665000,-417.92,0.00028493,8]
[425027004,1781436665000,-205.29,0.00028493,8]
[425027029,1781436665000,-500.0,0.00028493,8]
[425027022,1781436665000,-500.0,0.00028493,8]
[425027008,1781436665000,-372.27,0.00028493,8]
[425027019,1781436665000,-500.0,0.00028493,8]
[425027006,1781436665000,-415.9,0.00028493,8]
[425027016,1781436665000,-542.25,0.00028493,8]
[425027007,1781436665000,-500.0,0.00028493,8]
[425027015,1781436665000,-379.62,0.00028493,8]
[425027014,1781436665000,-400.92,0.00028493,8]
[425027017,1781436665000,-500.0,0.00028493,8]
[425027013,1781436665000,-500.0,0.00028493,8]
[425027012,1781436665000,-503.78,0.00028493,8]
[425027010,1781436665000,-589.72754694,0.00028493,8]
[425027101,1781436666000,-500.0,0.00028752,8]
[425027092,1781436666000,-199.29976469,0.00028711,2]
[425027091,1781436666000,-390.18,0.0002871,2]
[425027102,1781436666000,-500.0,0.00028752,8]
[425027088,1781436666000,-2000.0,0.0002871,2]
[425027087,1781436666000,-1461.69,0.0002871,2]
[425027082,1781436666000,-2000.0,0.0002871,2]
[425027081,1781436666000,-1818.46,0.0002871,2]
[425027079,1781436666000,-3000.0,0.0002871,2]
[425027089,1781436666000,-275.7,0.0002871,2]
[425027090,1781436666000,-936.43,0.0002871,2]
[425027085,1781436666000,-2000.0,0.0002871,2]
[425027095,1781436666000,-198.57063893,0.00028744,2]
[425027109,1781436666000,-233.25892153,0.00028757,2]
[425027093,1781436666000,-160.0,0.0002872,3]
[425027094,1781436666000,-459.49077073,0.00028723,2]
[425027097,1781436666000,-206.18,0.00028752,8]
[425027100,1781436666000,-500.0,0.00028752,8]
[425027098,1781436666000,-500.0,0.00028752,8]
[425027099,1781436666000,-500.0,0.00028752,8]
[425027107,1781436666000,-500.0,0.00028753,8]
[425027106,1781436666000,-500.0,0.00028753,8]
[425027112,1781436666000,-500.0,0.00028764,8]
[425027113,1781436666000,-460.39,0.00028764,8]
[425027105,1781436666000,-1636.44,0.00028753,8]
[425027114,1781436666000,-500.0,0.00028765,8]
[425027084,1781436666000,-1000.0,0.0002871,2]
[425027096,1781436666000,-2731.01,0.00028745,2]
[425027083,1781436666000,-400.0,0.0002871,2]
[425027054,1781436666000,-151.0,0.00028493,7]
[425027086,1781436666000,-2000.0,0.0002871,2]
[425027108,1781436666000,-1066.66,0.00028753,8]
[425027052,1781436666000,-2165.99,0.00028493,8]
[425027053,1781436666000,-155.62,0.00028493,8]
[425027055,1781436666000,-151.0,0.00028493,7]
[425027058,1781436666000,-500.0,0.00028493,15]
[425027056,1781436666000,-300.0,0.00028493,2]
[425027059,1781436666000,-151.0,0.00028493,7]
[425027057,1781436666000,-1000.0,0.00028493,8]
[425027062,1781436666000,-151.0,0.00028493,7]
[425027061,1781436666000,-2000.0,0.00028493,2]
[425027060,1781436666000,-151.0,0.00028493,7]
[425027064,1781436666000,-22435.0,0.000285,2]
[425027066,1781436666000,-2148.67,0.000285,7]
[425027063,1781436666000,-10000.0,0.000285,2]
[425027065,1781436666000,-1590.57,0.000285,7]
[425027078,1781436666000,-211.02,0.0002871,2]
[425027068,1781436666000,-286.0,0.00028591,2]
[425027067,1781436666000,-459.49077073,0.00028506,2]
[425027069,1781436666000,-500.0,0.00028592,8]
[425027070,1781436666000,-317.34173481,0.00028601,30]
[425027072,1781436666000,-185.0,0.00028625,3]
[425027077,1781436666000,-2000.0,0.0002871,2]
[425027071,1781436666000,-256.76119062,0.0002861,2]
[425027074,1781436666000,-2000.0,0.0002871,2]
[425027076,1781436666000,-1306.45,0.0002871,2]
[425027073,1781436666000,-160.0,0.00028706,3]
[425027075,1781436666000,-2000.0,0.0002871,2]
[425027080,1781436666000,-1364.31,0.0002871,2]
[425027103,1781436666000,-2292.85,0.00028753,8]
[425027172,1781436666000,-500.0,0.00028767,8]
[425027111,1781436666000,-317.34173481,0.00028764,30]
[425027146,1781436666000,-500.0,0.00028766,8]
[425027148,1781436666000,-500.0,0.00028766,8]
[425027150,1781436666000,-500.0,0.00028766,8]
[425027143,1781436666000,-956.36471393,0.00028766,8]
[425027145,1781436666000,-176.84,0.00028766,8]
[425027147,1781436666000,-500.0,0.00028766,8]
[425027149,1781436666000,-247.9,0.00028766,8]
[425027153,1781436666000,-500.0,0.00028766,8]
[425027156,1781436666000,-500.0,0.00028766,8]
[425027160,1781436666000,-500.0,0.00028766,8]
[425027163,1781436666000,-425.22,0.00028766,8]
[425027159,1781436666000,-500.0,0.00028766,8]
[425027154,1781436666000,-500.0,0.00028766,8]
[425027158,1781436666000,-500.0,0.00028766,8]
[425027155,1781436666000,-272.65344668,0.00028766,8]
[425027162,1781436666000,-500.0,0.00028766,8]
[425027157,1781436666000,-500.0,0.00028766,8]
[425027166,1781436666000,-406.54,0.00028766,8]
[425027164,1781436666000,-168.8,0.00028766,8]
[425027161,1781436666000,-500.0,0.00028766,8]
[425027165,1781436666000,-500.0,0.00028766,8]
[425027168,1781436666000,-500.0,0.00028767,8]
[425027167,1781436666000,-500.0,0.00028767,60]
[425027169,1781436666000,-500.0,0.00028767,8]
[425027104,1781436666000,-706.18,0.00028753,8]
[425027171,1781436666000,-500.0,0.00028767,8]
[425027173,1781436666000,-500.0,0.00028767,8]
[425027151,1781436666000,-396.56,0.00028766,8]
[425027144,1781436666000,-956.36471392,0.00028766,8]
[425027170,1781436666000,-500.0,0.00028767,8]
[425027141,1781436666000,-237.36,0.00028766,8]
[425027152,1781436666000,-500.0,0.00028766,8]
[425027110,1781436666000,-164.107817,0.00028763,30]
[425027120,1781436666000,-255.57,0.00028766,8]
[425027127,1781436666000,-500.0,0.00028766,8]
[425027117,1781436666000,-500.0,0.00028765,8]
[425027125,1781436666000,-512.58,0.00028766,8]
[425027119,1781436666000,-611.57,0.00028766,8]
[425027126,1781436666000,-476.7,0.00028766,8]
[425027121,1781436666000,-983.27,0.00028766,8]
[425027123,1781436666000,-500.0,0.00028766,8]
[425027115,1781436666000,-255.46,0.00028765,8]
[425027122,1781436666000,-500.0,0.00028766,8]
[425027118,1781436666000,-4262.73,0.00028766,8]
[425027124,1781436666000,-173.36,0.00028766,8]
[425027116,1781436666000,-348.1,0.00028765,8]
[425027129,1781436666000,-500.0,0.00028766,8]
[425027128,1781436666000,-284.59,0.00028766,8]
[425027139,1781436666000,-500.0,0.00028766,8]
[425027138,1781436666000,-500.0,0.00028766,8]
[425027134,1781436666000,-500.0,0.00028766,8]
[425027132,1781436666000,-500.0,0.00028766,8]
[425027140,1781436666000,-500.0,0.00028766,8]
[425027135,1781436666000,-500.0,0.00028766,8]
[425027133,1781436666000,-398.07,0.00028766,8]
[425027136,1781436666000,-500.0,0.00028766,8]
[425027142,1781436666000,-500.0,0.00028766,8]
[425027130,1781436666000,-500.0,0.00028766,8]
[425027131,1781436666000,-500.0,0.00028766,8]
[425027137,1781436666000,-500.0,0.00028766,8]
[425027196,1781436667000,-500.0,0.00028767,8]
[425027212,1781436667000,-500.0,0.00028767,8]
[425027203,1781436667000,-521.9,0.00028767,8]
[425027204,1781436667000,-500.0,0.00028767,8]
[425027210,1781436667000,-500.0,0.00028767,8]
[425027206,1781436667000,-500.0,0.00028767,8]
[425027208,1781436667000,-556.76,0.00028767,8]
[425027205,1781436667000,-601.94,0.00028767,8]
[425027209,1781436667000,-500.0,0.00028767,8]
[425027211,1781436667000,-537.56,0.00028767,8]
[425027214,1781436667000,-523.52,0.00028767,8]
[425027207,1781436667000,-500.0,0.00028767,8]
[425027217,1781436667000,-500.0,0.00028767,8]
[425027216,1781436667000,-811.39,0.00028767,8]
[425027218,1781436667000,-500.0,0.00028767,8]
[425027226,1781436667000,-500.0,0.00028767,8]
[425027215,1781436667000,-500.0,0.00028767,8]
[425027223,1781436667000,-806.3,0.00028767,8]
[425027221,1781436667000,-1633.28,0.00028767,8]
[425027225,1781436667000,-500.0,0.00028767,8]
[425027219,1781436667000,-605.32842759,0.00028767,8]
[425027222,1781436667000,-500.0,0.00028767,8]
[425027224,1781436667000,-1359.23,0.00028767,8]
[425027194,1781436667000,-500.0,0.00028767,8]
[425027213,1781436667000,-1289.85,0.00028767,8]
[425027199,1781436667000,-500.0,0.00028767,8]
[425027183,1781436667000,-500.0,0.00028767,8]
[425027191,1781436667000,-599.77,0.00028767,8]
[425027220,1781436667000,-812.74,0.00028767,8]
[425027178,1781436667000,-250.60709953,0.00028767,8]
[425027175,1781436667000,-500.0,0.00028767,8]
[425027176,1781436667000,-500.0,0.00028767,8]
[425027174,1781436667000,-521.23745824,0.00028767,8]
[425027177,1781436667000,-1506.29,0.00028767,8]
[425027179,1781436667000,-500.0,0.00028767,8]
[425027182,1781436667000,-2156.37,0.00028767,8]
[425027186,1781436667000,-531.68,0.00028767,8]
[425027185,1781436667000,-500.0,0.00028767,8]
[425027187,1781436667000,-815.38,0.00028767,8]
[425027197,1781436667000,-500.0,0.00028767,8]
[425027189,1781436667000,-1488.35,0.00028767,8]
[425027184,1781436667000,-500.0,0.00028767,8]
[425027181,1781436667000,-500.0,0.00028767,8]
[425027190,1781436667000,-500.0,0.00028767,8]
[425027188,1781436667000,-500.0,0.00028767,8]
[425027192,1781436667000,-500.0,0.00028767,8]
[425027201,1781436667000,-779.21,0.00028767,8]
[425027200,1781436667000,-500.0,0.00028767,8]
[425027202,1781436667000,-961.38,0.00028767,8]
[425027195,1781436667000,-500.0,0.00028767,8]
[425027193,1781436667000,-500.0,0.00028767,8]
[425027198,1781436667000,-500.0,0.00028767,8]
[425027180,1781436667000,-1286.88,0.00028767,8]
[425027227,1781436667000,-500.0,0.00028767,8]
[425027267,1781436667000,-500.0,0.00028767,8]
[425027236,1781436667000,-500.0,0.00028767,8]
[425027258,1781436667000,-707.44,0.00028767,8]
[425027259,1781436667000,-890.71,0.00028767,8]
[425027262,1781436667000,-500.0,0.00028767,8]
[425027257,1781436667000,-552.31,0.00028767,8]
[425027260,1781436667000,-614.66,0.00028767,8]
[425027263,1781436667000,-500.0,0.00028767,8]
[425027261,1781436667000,-515.11,0.00028767,8]
[425027266,1781436667000,-1088.42,0.00028767,8]
[425027277,1781436667000,-500.0,0.00028767,8]
[425027265,1781436667000,-500.0,0.00028767,8]
[425027268,1781436667000,-500.0,0.00028767,8]
[425027254,1781436667000,-500.0,0.00028767,8]
[425027269,1781436667000,-500.0,0.00028767,8]
[425027276,1781436667000,-978.97,0.00028767,7]
[425027275,1781436667000,-1020.0,0.00028767,8]
[425027273,1781436667000,-1250.94,0.00028767,8]
[425027272,1781436667000,-500.0,0.00028767,8]
[425027274,1781436667000,-1952.73,0.00028767,8]
[425027279,1781436667000,-500.0,0.00028767,8]
[425027278,1781436667000,-500.0,0.00028767,8]
[425027281,1781436667000,-531.01,0.00028767,7]
[425027282,1781436667000,-1008.86,0.00028767,8]
[425027280,1781436667000,-787.09,0.00028767,8]
[425027229,1781436667000,-154.34530909,0.00028767,8]
[425027271,1781436667000,-268.8479246,0.00028767,8]
[425027264,1781436667000,-1348.17,0.00028767,8]
[425027270,1781436667000,-500.0,0.00028767,8]
[425027255,1781436667000,-575.17,0.00028767,8]
[425027253,1781436667000,-629.17,0.00028767,8]
[425027239,1781436667000,-896.92,0.00028767,8]
[425027228,1781436667000,-500.0,0.00028767,8]
[425027231,1781436667000,-565.14240302,0.00028767,8]
[425027234,1781436667000,-1597.46,0.00028767,8]
[425027230,1781436667000,-444.71856471,0.00028767,8]
[425027238,1781436667000,-500.0,0.00028767,8]
[425027237,1781436667000,-500.0,0.00028767,8]
[425027232,1781436667000,-500.0,0.00028767,8]
[425027235,1781436667000,-757.43,0.00028767,8]
[425027252,1781436667000,-1745.46,0.00028767,8]
[425027251,1781436667000,-671.22,0.00028767,8]
[425027233,1781436667000,-500.0,0.00028767,8]
[425027256,1781436667000,-500.0,0.00028767,8]
[425027240,1781436667000,-500.0,0.00028767,8]
[425027248,1781436667000,-679.47,0.00028767,8]
[425027250,1781436667000,-564.22,0.00028767,8]
[425027246,1781436667000,-664.77,0.00028767,8]
[425027247,1781436667000,-578.7943594,0.00028767,8]
[425027249,1781436667000,-500.0,0.00028767,8]
[425027244,1781436667000,-859.8,0.00028767,8]
[425027243,1781436667000,-500.0,0.00028767,8]
[425027242,1781436667000,-500.0,0.00028767,8]
[425027241,1781436667000,-774.14,0.00028767,8]
[425027245,1781436667000,-919.22,0.00028767,8]
[425027319,1781436668000,-500.0,0.00028767,8]
[425027314,1781436668000,-273.04910691,0.00028767,8]
[425027321,1781436668000,-638.36,0.00028767,8]
[425027324,1781436668000,-537.41,0.00028767,8]
[425027323,1781436668000,-500.0,0.00028767,8]
[425027317,1781436668000,-692.5,0.00028767,8]
[425027320,1781436668000,-500.0,0.00028767,8]
[425027315,1781436668000,-556.64,0.00028767,8]
[425027318,1781436668000,-895.56,0.00028767,8]
[425027322,1781436668000,-578.0,0.00028767,8]
[425027326,1781436668000,-1251.89,0.00028767,8]
[425027316,1781436668000,-500.0,0.00028767,8]
[425027325,1781436668000,-500.0,0.00028767,8]
[425027342,1781436668000,-2765.89,0.00028767,8]
[425027333,1781436668000,-1212.61,0.00028767,8]
[425027327,1781436668000,-500.0,0.00028767,8]
[425027334,1781436668000,-540.71,0.00028767,8]
[425027328,1781436668000,-569.66,0.00028767,8]
[425027332,1781436668000,-500.0,0.00028767,8]
[425027331,1781436668000,-500.0,0.00028767,8]
[425027330,1781436668000,-632.608662,0.00028767,8]
[425027329,1781436668000,-500.0,0.00028767,8]
[425027335,1781436668000,-582.36,0.00028767,8]
[425027337,1781436668000,-500.0,0.00028767,8]
[425027341,1781436668000,-1084.4,0.00028767,8]
[425027313,1781436668000,-897.18,0.00028767,8]
[425027336,1781436668000,-500.0,0.00028767,8]
[425027308,1781436668000,-500.0,0.00028767,8]
[425027287,1781436668000,-775.9,0.00028767,8]
[425027306,1781436668000,-500.0,0.00028767,8]
[425027288,1781436668000,-500.0,0.00028767,8]
[425027346,1781436668000,-678.56,0.00028767,8]
[425027283,1781436668000,-233.40755879,0.00028767,8]